Cogmind - Beta 10.2 @@@ ROGUE MODE // 2021.02.23 @ 08:13:00 Player: gammafunk Result: Self-destructed Performance ------------- Evolutions (1) 500 Regions Visited (5) 1000 Robots Destroyed (66) 330 Value Destroyed (1580) 1580 Prototype IDs (9) 180 Alien Tech Used (0) 0 Bonus (202) 202 TOTAL SCORE: 3792 Bonus ------- Follower Combat Kills 88 Aligned with FarCom 300 Friendly Fire -186 Cogmind --------- Core Integrity 163/400 Matter 275/300 Energy 150/150 System Corruption 0% Temperature Cool (151) Movement Treading (180) Ox1 Location -9/Exiles Parts ------- > --- POWER (1) -------- Light Angular Momentum Engine > --- PROPULSION (3) --- Light Treads Light Treads > --- UTILITY (3) ------ Large Storage Unit Large Storage Unit Hardened Light Armor Plating > --- WEAPON (2) ------- YOLO Cannon > --- INVENTORY (16) --- Ion Engine Light Treads Light Treads Heat Sink High-capacity Matter Pod (186) Long-range Terrain Scanner Terrain Scan Processor Armor Integrity Analyzer Light Armor Plating Advanced Beam Rifle Advanced Beam Rifle Improved Assault Rifle Improved Assault Rifle Improved Assault Rifle Improved Assault Rifle Mini Grenade Launcher Peak State ------------ > --- POWER ------------ Light Angular Momentum Engine > --- PROPULSION ------- Light Treads Light Treads Light Treads > --- UTILITY ---------- Large Storage Unit Large Storage Unit Hardened Light Armor Plating > --- WEAPON ----------- YOLO Cannon > --- INVENTORY -------- Ion Engine Light Treads Light Treads Heat Sink High-capacity Matter Pod Long-range Terrain Scanner Terrain Scan Processor Armor Integrity Analyzer Light Armor Plating Advanced Beam Rifle Advanced Beam Rifle Improved Assault Rifle Improved Assault Rifle Improved Assault Rifle Improved Assault Rifle Mini Grenade Launcher [Rating: 35] Favorites ----------- Power Light Angular Momentum Engine Engine Light Angular Momentum Engine Propulsion Light Treads Treads Light Treads Utility Large Storage Unit Device Chronowheel Storage Large Storage Unit Protection Medium Armor Plating Weapon Light Assault Rifle Energy Gun Advanced Beam Rifle Energy Cannon YOLO Cannon Ballistic Gun Light Assault Rifle Launcher Rocket Launcher Build | -11 -10 -10 -9 -9 -9 ------- Run | Scr Mat Min Mat Min Exi Slots Evolved 2 | . . . 2 . . Power . | . . . . . . Propulsion 1 | . . . 1 . . Utility 1 | . . . 1 . . Weapon . | . . . . . . Parts Attached 68 | 6 12 3 43 1 3 Power 8 | 1 2 1 4 . . Engine 8 | 1 2 1 4 . . Core . | . . . . . . Reactor . | . . . . . . Propulsion 13 | 2 3 . 8 . . Treads 13 | 2 3 . 8 . . Leg . | . . . . . . Wheel . | . . . . . . Hover . | . . . . . . Flight . | . . . . . . Utility 13 | 1 4 . 6 . 2 Device 1 | . . . . . 1 Storage 5 | 1 1 . 3 . . Processor . | . . . . . . Hackware . | . . . . . . Protection 7 | . 3 . 3 . 1 Artifact . | . . . . . . Weapon 34 | 2 3 2 25 1 1 Energy Gun 10 | . . . 10 . . Energy Cannon 1 | . . . . . 1 Ballistic Gun 18 | 2 3 1 11 1 . Ballistic Cannon . | . . . . . . Launcher 5 | . . 1 4 . . Special Weapon . | . . . . . . Impact Weapon . | . . . . . . Slashing Weapon . | . . . . . . Piercing Weapon . | . . . . . . Special Melee Weapon . | . . . . . . Unidentified Prototypes 7 | . . . 5 . 2 Parts Lost 6 | . 1 . 4 . 1 Power . | . . . . . . Propulsion 3 | . . . 2 . 1 Utility 1 | . . . 1 . . Weapon 2 | . 1 . 1 . . Highest Loss Streak 3 | . 1 . 3 . 1 Average Slot Usage (%) 97 | . 96 100 96 100 95 Engine 12 | . 14 14 10 11 11 Treads 29 | . 27 28 30 33 32 Storage 18 | . 14 14 21 22 22 Protection 11 | . 11 14 11 11 10 Energy Gun 2 | . . . 7 . . Ballistic Gun 18 | . 27 18 13 16 14 Launcher 2 | . . 9 1 5 . Naked Turns . | . . . . . . Heaviest Build 64 | 12 31 32 54 52 64 Greatest Support 60 | 40 40 40 60 60 60 Greatest Overweight (x) 1 | . . . 1 . 1 Average Overweight (x) . | . . . . . . Largest Inventory Capacity 16 | 6 12 10 16 16 16 Average Capacity 12 | 5 9 10 15 16 16 Most Carried 16 | 4 10 10 16 16 16 Average Carried 12 | 2 9 10 14 16 16 Final Capacity 16 | 6 10 10 16 16 16 Final Carried 16 | 4 10 10 16 16 16 Class Distribution -------------------- 52% | Mutant 47% | Scavenger-Mutant Dominant Class ---------------- Mutant | -10/Materials Mutant | -10/Mines Scavenger-Mutant | -9/Materials Scavenger-Mutant | -9/Mines Scavenger-Mutant | -9/Exiles Resources | -11 -10 -10 -9 -9 -9 ----------- Run | Scr Mat Min Mat Min Exi Matter Collected 1835 | 198 522 62 891 162 . Remotely . | . . . . . . Salvage Created 2021 | . 866 48 982 95 30 Parts 137 | . 52 7 69 7 2 Haulers Intercepted 6 | . 2 . 4 . . Recyclers Shooed 2 | . . . 1 1 . Parts Field Recycled . | . . . . . . Retrieved Matter . | . . . . . . Parts Self-Destructed . | . . . . . . Prevented . | . . . . . . Kills | -11 -10 -10 -9 -9 -9 ------- Run | Scr Mat Min Mat Min Exi Combat Hostiles Destroyed 54 | . 19 3 21 5 6 Guns 39 | . 19 3 16 1 . Cannons 1 | . . . . . 1 AOE 14 | . . . 5 4 5 Classes Destroyed 11 | . 4 1 4 . 2 Worker 3 | . . 1 1 1 . Builder 1 | . . . 1 . . Hauler 6 | . 2 . 4 . . Recycler 1 | . . . 1 . . Watcher 5 | . 3 . 2 . . Swarmer 14 | . 3 3 6 2 . Grunt 27 | . 16 . 8 3 . Brawler 1 | . . . 1 . . Sentry 6 | . . . 6 . . Zionite 1 | . . . . . 1 Assembled 6 | . . . . . 6 Best Kill Streak 8 | . 4 3 5 5 8 Combat Bots Only 6 | . 3 3 5 4 6 Max Kills in Single Turn 4 | . 1 1 2 2 4 Gunslinging 1 | . . . 1 . . Exploded 3 | . . . 1 2 3 Melee . | . . . . . . Uniques/NPCs Destroyed 1 | . . . . . 1 EX-BIN (-9/Exiles) Combat | -11 -10 -10 -9 -9 -9 -------- Run | Scr Mat Min Mat Min Exi Damage Taken 2761 | . 946 115 1062 70 568 Core 385 | . 148 . 119 10 108 Absorbed by Shields . | . . . . . . Core Remaining (%) 70 | 100 . 40 . . . Volleys Fired 201 | . 88 8 87 7 11 Largest 2 | . 2 2 2 2 1 Hottest 122 | . 40 40 122 46 100 Shots Fired 367 | . 173 16 158 9 11 Gun 339 | . 173 16 146 4 . Cannon 11 | . . . . . 11 Launcher 17 | . . . 12 5 . Special . | . . . . . . Kinetic 287 | . 173 16 94 4 . Thermal 63 | . . . 52 . 11 Explosive 17 | . . . 12 5 . Electromagnetic . | . . . . . . Robot Hit Streak 21 | . 21 3 15 12 5 Robot Miss Streak 5 | . 5 2 5 1 3 Penetration Max . | . . . . . . Secondary Targets 7 | . 3 1 3 . . Max Gunslinging Chain 1 | . 1 1 1 . . Shots Hit Robots 246 | . 122 8 105 5 6 Core Hits 116 | . 50 5 44 8 9 Critical Hits 6 | . 2 . . . 4 Critical Kills . | . . . . . . Critical Parts Destroyed 4 | . 2 . . . 2 Melee Attacks . | . . . . . . Impact . | . . . . . . Slashing . | . . . . . . Piercing . | . . . . . . Sneak Attacks . | . . . . . . Combat Hostiles . | . . . . . . Follow-up Attacks . | . . . . . . Damage Inflicted 4743 | . 1269 79 1929 537 929 Guns 2804 | . 1269 79 1415 41 . Cannons 262 | . . . . . 262 Explosions 1677 | . . . 514 496 667 Melee . | . . . . . . Ramming . | . . . . . . Kinetic 2244 | . 1269 79 855 41 . Thermal 1489 | . . . 560 . 929 Explosive 1010 | . . . 514 496 . Electromagnetic . | . . . . . . Impact . | . . . . . . Slashing . | . . . . . . Piercing . | . . . . . . Highest Corruption . | . . . . . . Average Corruption . | . . . . . . Corruption Purged . | . . . . . . Overload Shots . | . . . . . . Overflow Damage 136 | . . . 16 8 112 Projectiles 55 | . . . . . 55 Explosions 81 | . . . 16 8 57 Melee . | . . . . . . Knockbacks . | . . . . . . Impact . | . . . . . . Kinetic . | . . . . . . Secondary . | . . . . . . Self-Inflicted Damage 88 | . . . 21 . 67 Shots 2 | . . . 1 . 1 Rammed . | . . . . . . Targets Rammed . | . . . . . . Kicked . | . . . . . . Crushed . | . . . . . . Highest Temperature 306 | . 33 12 306 5 205 Average Temperature 59 | . 9 5 88 4 85 Received Heat Transfer 778 | . 468 . 243 27 40 Siege Activations . | . . . . . . Robots Corrupted . | . . . . . . Combat Hostiles . | . . . . . . Parts Fried . | . . . . . . Impact Corruptions . | . . . . . . Robots Melted . | . . . . . . Combat Hostiles . | . . . . . . Parts Melted 3 | . . . . . 3 Heat Transferred 2036 | . . . 1036 . 1000 Parts Sabotaged . | . . . . . . Parts Stolen . | . . . . . . Parts Stripped . | . . . . . . Power Chain Reactions . | . . . . . . Missiles Intercepted . | . . . . . . Alert | -11 -10 -10 -9 -9 -9 ------- Run | Scr Mat Min Mat Min Exi Peak Influence 289 | . 289 154 286 269 . Initial 104 | . . 79 . 104 . Average 117 | . 98 73 137 195 . Maximum Alert Level 1 | . 1 . 1 1 . Low Security (%) 76 | 100 86 100 67 30 . Level 1 23 | . 13 . 32 69 . Level 2 . | . . . . . . Level 3 . | . . . . . . Level 4 . | . . . . . . Level 5 . | . . . . . . High Security . | . . . . . . Max Security . | . . . . . . Squads Dispatched 9 | . 5 . 3 1 . Investigation 4 | . 3 . . 1 . Extermination . | . . . . . . Reinforcement 5 | . 2 . 3 . . Assault . | . . . . . . Garrison . | . . . . . . Intercept . | . . . . . . Construction Impeded . | . . . . . . Haulers Reinforced . | . . . . . . Stealth | -11 -10 -10 -9 -9 -9 --------- Run | Scr Mat Min Mat Min Exi Distress Signals 3 | . 2 . 1 . . Communications Jammed . | . . . . . . Distress Signals . | . . . . . . Times Spotted 89 | . 35 3 37 5 9 Peak Tracking Total 11 | . 4 2 5 3 11 Tactical Retreats 8 | . 3 . 3 2 . Traps | -11 -10 -10 -9 -9 -9 ------- Run | Scr Mat Min Mat Min Exi Traps Triggered 3 | . 2 . 1 . . Indirectly . | . . . . . . Trap Hack Attempts . | . . . . . . Triggered . | . . . . . . Disarmed . | . . . . . . Reprogrammed . | . . . . . . Reused . | . . . . . . Traps Extracted . | . . . . . . Installed . | . . . . . . Triggered . | . . . . . . Machines | -11 -10 -10 -9 -9 -9 ---------- Run | Scr Mat Min Mat Min Exi Machines Disabled 11 | . . . 6 . 5 Max in Single Turn 3 | . . . 1 . 3 Machines Sabotaged . | . . . . . . Garrisons Compromised . | . . . . . . Overloaded Fab Kills . | . . . . . . Fab Network Shutdowns . | . . . . . . Hacking | -11 -10 -10 -9 -9 -9 --------- Run | Scr Mat Min Mat Min Exi Machines Accessed 16 | . 6 1 8 1 . Terminals 12 | . 5 1 6 . . Fabricators . | . . . . . . Repair Stations 3 | . 1 . 2 . . Recycling Units . | . . . . . . Scanalyzers . | . . . . . . Garrison Access . | . . . . . . Total Hacks 51 | . 21 1 28 1 . Successful 26 | . 10 . 15 1 . Failed 25 | . 11 1 13 . . Catastrophic 3 | . . . 3 . . Database Lockouts . | . . . . . . Manual 34 | . 14 1 18 . 1 Terminals 36 | . 14 1 21 . . Fabricators . | . . . . . . Repair Stations 14 | . 7 . 7 . . Recycling Units . | . . . . . . Scanalyzers . | . . . . . . Garrison Access . | . . . . . . Terminal Hacks 9 | . 2 . 6 1 . Part Schematic 1 | . . . 1 . . Prototype ID Bank 1 | . . . 1 . . Open Door 1 | . . . . 1 . Branch Access Points 2 | . 1 . 1 . . Terminal Index 1 | . 1 . . . . Unreport Threat 1 | . . . 1 . . Locate Traps 2 | . . . 2 . . Fabricator Hacks . | . . . . . . Repair Station Hacks 11 | . 6 . 5 . . Scan Component 6 | . 3 . 3 . . Repair 5 | . 3 . 2 . . Recycling Unit Hacks . | . . . . . . Scanalyzer . | . . . . . . Garrison Access Hacks . | . . . . . . Unauthorized Hacks 6 | . 2 . 4 . . Terminals 6 | . 2 . 4 . . Botnet 6 | . 2 . 4 . . Fabricators . | . . . . . . Repair Stations . | . . . . . . Recycling Units . | . . . . . . Scanalyzers . | . . . . . . Garrison Access . | . . . . . . Data Cores Recovered . | . . . . . . Used . | . . . . . . Hacking Detections 15 | . 6 1 8 . . Full Trace Events 1 | . 1 . . . . Feedback Events . | . . . . . . Feedback Blocked . | . . . . . . Robot Schematics Acquired . | . . . . . . Robots Built . | . . . . . . Matter . | . . . . . . Time . | . . . . . . Total Robot Build Rating . | . . . . . . Part Schematics Acquired 1 | . . . 1 . . Parts Built . | . . . . . . Matter . | . . . . . . Time . | . . . . . . Total Part Build Rating . | . . . . . . Parts Repaired 5 | . 3 . 2 . . Time 154 | . 78 . 76 . . Parts Recycled . | . . . . . . Recycled Matter . | . . . . . . Retrieved Matter . | . . . . . . Retrieved Components . | . . . . . . Parts Scanalyzed . | . . . . . . Part Schematics Acquired . | . . . . . . Parts Damaged . | . . . . . . Bothacking | -11 -10 -10 -9 -9 -9 ------------ Run | Scr Mat Min Mat Min Exi Used RIF Installer . | . . . . . . Robots Hacked . | . . . . . . Non-combat . | . . . . . . Combat . | . . . . . . Robot Hacks Applied . | . . . . . . Relay Couplers Released . | . . . . . . Robots Rewired . | . . . . . . Allies Hacked . | . . . . . . Hacks Repelled . | . . . . . . Allies | -11 -10 -10 -9 -9 -9 -------- Run | Scr Mat Min Mat Min Exi Total Allies 5 | . . 5 . . . Largest Group 5 | . . 5 5 . . Highest-Rated Group 82 | . . 82 82 . . Highest-Rated Ally 31 | . . 31 31 . . Total Orders . | . . . . . . Ally Attacks 24 | . . . 24 . . Total Damage 347 | . . . 347 . . Kills 7 | . . . 7 . . Allies Corrupted . | . . . . . . Allies Melted . | . . . . . . Intel | -11 -10 -10 -9 -9 -9 ------- Run | Scr Mat Min Mat Min Exi Robot Analysis Total . | . . . . . . Derelict Logs Recovered 3 | . . 3 . . . Drone Launches . | . . . . . . Drone Recoveries . | . . . . . . Exploration | -11 -10 -10 -9 -9 -9 ------------- Run | Scr Mat Min Mat Min Exi Turns Passed 5630 | 98 1770 817 2086 481 378 Spaces Moved 2853 | 57 840 487 984 286 199 Core 5 | 5 . . . . . Treads 2848 | 52 840 487 984 286 199 Legs . | . . . . . . Wheels . | . . . . . . Hover . | . . . . . . Flight . | . . . . . . Fastest Speed 50 | 50 160 160 160 160 160 Average Speed 161 | 150 160 160 163 160 164 Slowest Speed 180 | 160 160 160 180 160 180 Overloaded Moves . | . . . . . . Propulsion Burnouts . | . . . . . . Robots Hopped . | . . . . . . Cave-ins Triggered . | . . . . . . Exploration Rate (%) 60 | 5 88 93 63 71 42 Regions Visited 5 Branch Regions 3 Pre-discovered Areas 2 | . . 2 . . . Known Exits Taken 2 | . 1 . 1 . . Unknown Exits Taken 3 | 1 . 1 . 1 . Scrap Searched 3 | . . 1 . 2 . Spaces Dug . | . . . . . . Terrain Destroyed 193 | . . . 104 53 36 Melee . | . . . . . . Projectile 1 | . . . . . 1 AOE 192 | . . . 104 53 35 Terrain Rammed . | . . . . . . Walls Destroyed . | . . . . . . Machines Disabled . | . . . . . . Actions | -11 -10 -10 -9 -9 -9 --------- Run | Scr Mat Min Mat Min Exi Total 3536 | 67 1114 512 1324 302 217 Wait 325 | . 151 11 156 7 . Move 2848 | 56 839 486 983 285 199 Hop . | . . . . . . Pick Up 41 | 5 12 1 22 1 . Fast Attach 22 | 5 5 . 9 . 3 Attach 7 | 1 1 . 5 . . Detach 2 | . 1 . . . 1 Swap 39 | . 6 3 29 1 . Drop 51 | . 11 3 33 1 3 Fire 201 | . 88 8 87 7 11 Melee . | . . . . . . Ram . | . . . . . . Kick . | . . . . . . Crush . | . . . . . . Escape Stasis . | . . . . . . Rewire . | . . . . . . Trap . | . . . . . . Miscellaneous . | . . . . . . Route ------- -11/Scrapyard -10/Materials (discovered 5 exits: *Mat x3 / *Min x2) -10/Mines (discovered 2 exits: *Mat x2) -9/Materials (discovered 4 exits: [*Mat x2] / *Min x2) -9/Mines (discovered 3 exits: [*Mat x2] / *Exi) -9/Exiles History --------- Turn | Location | Event 24 | -11/Scrapyard | Discovered new exit (range 16) 99 | -11/Scrapyard | Entered Materials 269 | -10/Materials | Repaired Lgt. Treads 309 | -10/Materials | Build established: Mutant 402 | -10/Materials | Discovered new exit (range 12) 457 | -10/Materials | Discovered new exit (range 8) 523 | -10/Materials | Discovered new exit (range 16) 616 | -10/Materials | Discovered new exit (range 16) 866 | -10/Materials | Repaired Lgt. Treads 893 | -10/Materials | Repaired Lgt. Assault Rifle 1627 | -10/Materials | Core integrity fell below 50% 1687 | -10/Materials | Identified exit to Mines 1687 | -10/Materials | Discovered new exit (range 6) 1869 | -10/Materials | Entered Mines 1957 | -10/Mines | Learned location of Recycling (-7) 1968 | -10/Mines | Discovered new exit (range 6) 2125 | -10/Mines | Received a Rocket Launcher from a helpful Derelict 2162 | -10/Mines | Discovered new exit (range 12) 2365 | -10/Mines | Learned location of Storage (-7) 2386 | -10/Mines | Assisted by bots powering up and referring to "LRC-V3" 2467 | -10/Mines | Learned Materials machine intel 2686 | -10/Mines | Entered Materials 2686 | -9/Materials | Accompanied by 5 allies 2686 | -9/Materials | Evolved 2 slots: Propulsion x1, Utility x1 2687 | -9/Materials | Loaded intel: 64 machine locations 2691 | -9/Materials | Led the pair of lost Derelicts to an unsafe place 3074 | -9/Materials | Lost 3 parts (1n1u1w) 3140 | -9/Materials | Identified exit to Mines 3151 | -9/Materials | Build established: Scavenger-Mutant 3428 | -9/Materials | Discovered new exit (range 4) 3952 | -9/Materials | Repaired Lgt. Treads 4003 | -9/Materials | Repaired Lgt. Angular Momentum Engine 4049 | -9/Materials | Discovered new exit (range 13) 4772 | -9/Materials | Entered Mines 4793 | -9/Mines | Deemed a non-threat by the Exiles lab entrance 4793 | -9/Mines | Discovered new exit (range 5) 4903 | -9/Mines | Discovered new exit (range 8) 5011 | -9/Mines | Discovered new exit (range 11) 5018 | -9/Mines | Met a Derelict shopkeep closing up shop 5253 | -9/Mines | Entered Exiles 5292 | -9/Exiles | Met 8R-AWN 5321 | -9/Exiles | Met EX-HEX 5377 | -9/Exiles | Met EX-BIN 5397 | -9/Exiles | Aligned with FarCom system 5399 | -9/Exiles | Given EX-Vault access code 5468 | -9/Exiles | Opened EX-Vault 5484 | -9/Exiles | Found Prototype Device 5484 | -9/Exiles | Identified Chronowheel 5484 | -9/Exiles | Activated Chronowheel 5507 | -9/Exiles | Found Prototype Energy Cannon 5507 | -9/Exiles | Identified YOLO Cannon 5553 | -9/Exiles | Warned to stay clear of 0b10 Research branches 5565 | -9/Exiles | Attacked by the Exiles 5568 | -9/Exiles | Destroyed EX-BIN 5626 | -9/Exiles | Core integrity fell below 50% 5631 | -9/Exiles | Self-destructed Last Messages --------------- Penetrated by HV Slug. HV Slug penetrates Wall. Penetrated by HV Slug. HV Slug penetrates Wall. 8R-AWN suffers critical hit. HV Slug penetrates Wall. Penetrated by HV Slug. HV Slug penetrates Wall. Penetrated by HV Slug. HV Slug penetrates Wall. Penetrated by HV Slug. HV Slug penetrates Wall. Penetrated by HV Slug. HV Slug penetrates Wall. Penetrated by HV Slug. HV Slug penetrates Wall. Penetrated by HV Slug. Critical hit. Lgt. Treads destroyed. HV Slug penetrates Wall. Map ----- +----------------------------------------------------+ | ??????????????????# [ #??????????????????????? | | ??????????????????# [ #??????????????????????? | | ??????????????????# X#??????????????????????? | | ??????????????????## ##??????????????????????? | | ??????????????????#X #???????????????????????? | | ??????????????????## #???????????????????????? | | ???????????????????# #???????????????????????? | | ???????????????????# #########???????????????? | | ???????????????????# ##""""""#???????????????? | | ???????????????????# ## """#???????????????? | | ???????????????????# X""#???????????????? | | ???????????????????# ## """#???????????????? | | ???????????######### ##""""""#???????????????? | | ???????????#""""""## #########???????????????? | | ???????????#"""" ## #???????????????????????? | | ???????????#""X" #???????????????????????? | | ???????????#" #???????????????????????? | | ???????????#" ## #???????????????????????? | | ???????????#""""""## #?#########?????????????? | | ???????????##"###### ###"""""""#?????????????? | | ??????????? "?????# ;##"""""""#?????????????? | | ??????????"""??????# ;##"""""""#?????????????? | | ??????????"""?????## ;##"" """"#?????????????? | | ??????????????????#" """"#?????????????? | | ??????????????????#" """#?????????????? | | ??????????????????#" @ "#?????????????? | | ??????????????????#" #?????????????? | | ??????????????????#" #?????????????? | | ??????????????????#" ##????????????? | | ??????????????????## """???????????? | | ???????????????????# %% a ###???????????? | | ???????????????????#" %% """????????????? | | ???????????????????#" "" # ????????????? | | ???????????????????#" """"""#?????????????? | | ??????????????????##" #######?????????????? | | ?????????????????##"" #???????????????????? | | ???????????????###"" #???????????????????? | | ???????????????""""" ???????????????????? | | ?????????????"" " "" ?##########????????? | | ?????????????"" " g ##"""""""""##??????? | | ???????????? " " """ """"##?????? | | ?????????? "" " #?????? | | ????????? " """#?????? | | ?????????? " "#?????? | | ?????????? " "##????? | | ?????????? ""###??? | | ??????????? """""" """#??? | | ??????????? ######""" "#??? | | ???????????? ""#?????#####""" ##?? | | ?????????????????????????##""" ##? | +----------------------------------------------------+ Best States ------------- Heat Dissipation 28 Energy Generation 18 Energy Capacity 250 Matter Stores 300 Matter Capacity 300 Sight Range 16 Terrain Scan Density 10 Armor Coverage 225 Evasion (%) 40 Recoil Reduction 3 Item Schematics ----------------- Hcp. Storage Unit | -9/Materials | Hacked Robot Schematics ------------------ None Fabricated ------------ Nothing Alien Tech Used ----------------- None Achievements -------------- None Challenges ------------ None Game ------ Seed GuidanceElectronReactor Manual? 0 Play Time 00:44:20 Cumulative 17.2 hours Start 2021.02.23 @ 07:03:45 End 2021.02.23 @ 08:13:00 Sessions 5 Manual Loads 0 Difficulty Rogue Special Mode None Game No. 14 Rogue 14 Adventurer 0 Explorer 0 Win Type - Total 0 Types 0/0/0/0/0/0/0/0/0 Lore% 32 Gallery% 22 Achievement% 26 Wizard Run 0 Options --------- ASCII 0 Keyboard 1 Movement Vi Keybinds 0 Fullscreen 2 Font 12/Smallcaps Map View 60x54 Tactical HUD 0 Map Filters NONE Filters NONE Steam 0 RUN: 45e310a9-5b0d-4bb3-919a-216cf5d94c3c